bitfinex-derivatives/quotes_ETHF0:USTF0_20240924
["timestamp","ask_amount","ask_price","bid_price","bid_amount"]
[1727200738399,0.37716,2651.5,2651.1,0.37721]
[1727200738591,0.37716,2651.5,2651.0,3.2078]
[1727200738791,0.37716,2651.5,2651.0,3.58502]
[1727200739188,0.37716,2651.5,2650.5,1.31296]
[1727200739189,3.2078,2651.2,2650.5,0.3697]
[1727200739497,1.1528,2651.1,2650.5,0.3697]
[1727200739701,0.37725,2650.9,2650.5,0.74699]
[1727200739912,0.37726,2650.9,2650.5,0.74699]
[1727200740204,3.58506,2650.9,2650.5,0.74699]
[1727200740590,3.58506,2650.9,2650.6,0.37728]
[1727200740591,3.2078,2650.9,2650.6,0.37728]
[1727200741099,3.58505,2650.9,2650.6,0.37728]
[1727200741299,0.37726,2650.8,2650.5,0.747]
[1727200741492,0.37726,2650.8,2650.6,0.37729]
[1727200741695,0.37726,2650.8,2650.3,3.2078]
[1727200741895,3.2078,2650.9,2650.3,3.58512]
[1727200742097,4.15095,2650.9,2650.3,3.58512]
[1727200742302,0.37729,2650.6,2650.3,3.58512]
[1727200742501,0.3749,2650.5,2650.3,3.58512]
[1727200743003,3.2078,2650.9,2650.4,3.7728]
[1727200743195,3.2078,2650.9,2650.6,0.37728]
[1727200743394,3.58505,2650.9,2650.6,0.37728]
[1727200743593,3.2078,2650.9,2650.7,0.37727]
[1727200743793,3.2078,2650.9,2650.8,0.37726]
[1727200743996,0.3749,2651.0,2650.9,0.37724]
[1727200744299,0.76092,2651.1,2650.9,0.37724]
[1727200744508,1.15752,2651.1,2650.9,0.37724]
[1727200744700,1.15753,2651.1,2650.6,3.2078]
[1727200745004,0.76092,2651.1,2650.9,0.37724]
[1727200745503,0.3837,2651.1,2650.6,3.2078]
[1727200745694,0.37724,2651.0,2650.9,0.37724]
[1727200745902,0.3837,2651.1,2651.0,0.37723]
[1727200746493,0.3966,2651.3,2651.2,0.3772]
[1727200746795,0.7738,2651.3,2651.1,0.37721]
[1727200747002,0.7738,2651.3,2651.2,0.3772]
[1727200747508,0.3772,2651.2,2651.1,0.37721]
[1727200747805,0.77379,2651.3,2651.1,0.37721]
[1727200748005,0.77379,2651.3,2651.2,0.3772]
[1727200748198,0.3966,2651.3,2651.2,0.3772]
[1727200748394,0.77379,2651.3,2650.7,0.94319]
[1727200748600,0.77379,2651.3,2651.1,0.3772]
[1727200748799,0.77379,2651.3,2651.2,0.3772]
[1727200749114,0.3966,2651.3,2650.9,0.37723]
[1727200749307,4.0167,2651.2,2650.6,3.2078]
[1727200749502,4.0167,2651.2,2650.6,3.58508]
[1727200749706,0.94305,2651.1,2650.7,0.37727]
[1727200750401,0.94305,2651.1,2650.6,3.2078]
[1727200750402,0.37727,2650.8,2650.6,3.2078]
[1727200750619,0.94305,2651.1,2650.7,0.37726]
[1727200750620,0.37725,2650.9,2650.7,0.37726]
[1727200750806,0.37725,2650.9,2650.7,0.37727]
[1727200751107,0.37727,2650.8,2650.6,3.1965]
[1727200751313,0.37727,2650.8,2650.7,0.37727]
[1727200751502,0.37727,2650.7,2650.6,3.57378]
[1727200751698,1.92070166,2651.0,2650.6,3.1965]
[1727200752000,0.37727,2650.7,2650.6,3.57378]
[1727200752199,0.37727,2650.7,2650.6,3.1965]
[1727200752404,0.94319,2650.7,2650.3,3.2078]
[1727200752604,0.94319,2650.7,2650.5,0.3773]
[1727200752605,1.14669,2650.6,2650.5,0.3773]
[1727200752808,1.14669,2650.6,2650.0,0.94342]
[1727200752809,2.6975177,2650.6,2649.9,4.4278]
[1727200753001,0.37732,2650.4,2650.3,0.37733]
[1727200753204,0.98493422,2650.4,2650.3,0.37733]
[1727200753408,0.37733,2650.3,2650.2,0.37734]
[1727200753604,0.98552731,2650.3,2650.2,0.37734]
[1727200753810,1.47389523,2650.5,2650.1,3.2078]
[1727200753811,1.36284514,2650.4,2650.3,0.37733]
[1727200754010,0.98552514,2650.4,2650.3,0.37733]
[1727200754217,0.37732,2650.4,2650.3,0.37733]
[1727200754712,0.37732,2650.4,2650.3,0.37732]
[1727200754916,1.47389523,2650.5,2650.1,3.2078]
[1727200755215,1.47389523,2650.5,2649.9,2.16346]
[1727200755216,0.98616442,2650.5,2650.2,4.15117]
[1727200755408,0.98616442,2650.6,2650.5,0.3773]
[1727200756110,1.47389523,2650.7,2650.6,0.37729]
[1727200756412,1.47389523,2650.7,2650.6,3.58509]
[1727200756610,1.47389523,2650.7,2650.6,7.35789]
[1727200756812,1.47389523,2650.7,2650.6,3.58509]
[1727200757318,2.35756354,2650.9,2650.6,3.58509]
[1727200757319,1.47389523,2650.8,2650.7,0.37727]
[1727200758019,1.47389523,2650.8,2650.7,1.32046]
[1727200758404,2.46095771,2650.8,2650.7,1.32046]
[1727200758610,0.98706248,2650.8,2650.7,1.32046]
[1727200758815,0.98706248,2650.8,2650.7,0.37727]
[1727200760115,0.98706248,2650.8,2650.7,1.32046]
[1727200760317,0.98706248,2650.8,2650.7,12.03645]
[1727200760514,0.94285,2651.7,2651.0,0.37723]
[1727200760515,0.98706248,2651.1,2651.0,0.37723]
[1727200760815,1.96556354,2651.6,2651.0,0.37723]
[1727200760816,0.98709262,2651.2,2651.0,3.2078]
[1727200761007,1.47389523,2651.4,2650.7,0.3974]
[1727200761008,0.37723,2651.0,2650.9,0.37724]
[1727200761212,1.36439547,2651.0,2650.9,0.37724]
[1727200761521,0.37724,2650.9,2650.8,0.37725]
[1727200761710,0.37724,2650.9,2650.7,3.58506]
[1727200762012,0.98732204,2650.8,2650.7,3.58507]
[1727200763810,1.47389523,2650.9,2650.7,3.58506]
[1727200764003,0.98729157,2650.8,2650.7,0.37726]
[1727200764211,1.85114523,2650.9,2650.8,0.37726]
[1727200764411,0.37726,2650.8,2650.7,0.37727]
[1727200764914,1.36454272,2650.8,2650.7,0.37727]
[1727200765311,0.98724131,2650.8,2650.7,0.37727]
[1727200765607,1.85114523,2650.9,2650.4,3.2078]
[1727200765608,1.96556354,2650.9,2650.4,3.2078]
[1727200765807,2.34285354,2650.6,2650.5,0.3773]
[1727200766010,2.34285354,2650.6,2650.4,3.58511]
[1727200766319,2.33666354,2650.5,2650.4,3.58511]
[1727200767014,2.71396354,2650.5,2650.4,3.58511]
[1727200767216,2.33666354,2650.5,2650.4,3.58511]
[1727200767518,1.48088207,2650.6,2650.4,12.9806]
[1727200767719,2.33666354,2650.7,2650.6,0.37729]
[1727200768114,0.3711,2650.7,2650.6,0.37729]
[1727200768813,3.58505,2650.9,2650.6,0.37729]
[1727200768814,5.17336354,2650.9,2650.8,0.37726]
[1727200769014,1.96556354,2650.9,2650.8,0.37726]
[1727200769409,2.34280354,2650.9,2650.8,0.37726]
[1727200769721,1.96556354,2650.9,2650.8,0.37726]
[1727200769921,2.34280354,2650.9,2650.8,0.37726]
[1727200770508,1.96556354,2650.9,2650.8,0.37726]
[1727200770913,2.34280354,2650.9,2650.8,0.37726]
[1727200771508,1.96556354,2650.9,2650.8,0.37726]
[1727200771712,2.34281354,2650.9,2650.8,0.37726]
[1727200772218,1.96556354,2650.9,2650.8,0.37726]
[1727200772916,0.98714834,2651.0,2650.9,2.26348]
[1727200773139,0.98714834,2651.0,2650.9,6.78788]
[1727200773316,0.98714834,2651.0,2650.9,12.78788]
[1727200773620,0.37719,2651.3,2651.2,0.3772]
[1727200773922,1.87390599,2651.3,2651.2,0.3772]
[1727200774421,0.37723,2651.0,2650.9,0.37724]
[1727200774724,1.48088083,2651.0,2650.9,0.37724]
[1727200774912,0.37723,2651.0,2650.9,0.37724]
[1727200775419,1.85811083,2651.0,2650.9,0.37724]
[1727200775613,1.48088083,2651.0,2650.9,0.37724]
[1727200775814,1.85811083,2651.1,2650.9,0.37724]
[1727200776021,0.37723,2651.0,2650.9,0.37724]
[1727200776210,0.37725,2650.9,2650.7,3.2078]
[1727200776416,0.98735655,2650.8,2650.7,3.58506]
[1727200776814,0.9873685,2650.8,2650.7,7.35787]
[1727200777221,0.9873685,2650.8,2650.7,3.58507]
[1727200777521,0.9873685,2650.8,2650.7,7.35787]
[1727200777720,0.9873685,2650.9,2650.8,0.37726]
[1727200777915,0.9873685,2651.0,2650.9,0.37724]
[1727200778111,1.48088083,2651.1,2651.0,0.37723]
[1727200778312,0.3835,2651.2,2651.1,0.37722]
[1727200778719,0.3835,2651.2,2651.1,4.14922]
[1727200780324,1.48088083,2651.3,2651.2,0.3772]
[1727200780515,2.44799258,2651.4,2651.3,0.37719]
[1727200780716,2.82309258,2651.5,2651.4,0.37717]
[1727200781220,2.82309258,2651.5,2651.3,3.2078]
[1727200781615,2.82309258,2651.5,2651.4,0.37717]
[1727200782224,0.37717,2651.4,2651.2,0.37719]
[1727200782521,2.8466258,2651.4,2651.2,0.37719]
[1727200782723,2.84640922,2651.4,2651.2,0.37719]
[1727200782921,2.46923922,2651.4,2651.3,0.37719]
[1727200783331,0.3772,2651.3,2651.0,0.37722]
[1727200783624,0.3897,2651.2,2650.3,4.15111]
[1727200783829,1.48175601,2650.4,2650.3,1.69084]
[1727200784124,2.46959336,2650.9,2650.3,1.69084]
[1727200784125,1.48170362,2650.5,2650.4,1.32062]
[1727200784328,1.48170362,2650.5,2650.4,7.23572]
[1727200784530,1.4816887,2650.6,2650.5,1.32056]
[1727200784726,1.97567469,2650.8,2650.7,0.37727]
[1727200784931,1.97567469,2650.8,2650.7,7.35787]
[1727200785130,1.97567469,2650.8,2650.7,14.30106]
[1727200785338,1.97567469,2650.9,2650.8,0.37726]
[1727200785828,2.83589336,2651.1,2650.8,4.14925]
[1727200786138,2.83989336,2651.0,2650.7,3.58507]
[1727200786427,2.46959336,2650.9,2650.7,3.2078]
[1727200786622,2.46959336,2650.8,2650.7,3.2078]
[1727200786822,2.84685336,2650.8,2650.7,3.2078]
[1727200787025,2.46959336,2650.8,2650.7,3.2078]
[1727200787727,2.46959336,2650.8,2650.7,3.58507]
[1727200788229,2.46959336,2650.8,2650.7,3.2078]
[1727200788626,2.46959336,2650.8,2649.9,3.58518]
[1727200788627,0.37736,2650.1,2649.9,3.58518]
[1727200788828,0.98822935,2650.1,2649.7,0.37741]
[1727200789132,0.98822935,2650.1,2649.8,0.37739]
[1727200789133,0.98822935,2649.9,2649.8,0.37739]
[1727200789325,1.87284403,2650.0,2649.6,0.70432]
[1727200789633,1.87284403,2650.0,2649.8,0.3774]
[1727200789634,0.98835357,2649.9,2649.8,0.3774]
[1727200789825,1.87284403,2650.0,2649.7,0.37741]
[1727200790127,0.98804236,2649.9,2649.7,0.37741]
[1727200790321,0.98804236,2649.8,2649.7,3.58522]
[1727200790518,0.98804236,2649.9,2649.7,3.58522]
[1727200790722,0.98804236,2649.9,2649.5,1.30857441]
[1727200790723,3.63804236,2649.9,2649.5,0.93817441]
[1727200790922,0.98804236,2649.7,2649.5,1.31561441]
[1727200791340,0.98804236,2649.6,2649.5,1.31561441]
[1727200791525,0.98804236,2649.7,2649.5,1.31561441]
[1727200791829,1.36354236,2649.7,2649.5,1.31561441]
[1727200792332,1.36354236,2649.7,2649.5,0.93817441]
[1727200792732,1.74096236,2649.7,2649.5,0.93817441]
[1727200793337,1.36354236,2649.7,2649.5,1.31561441]
[1727200793629,0.3755,2649.7,2649.5,1.31561441]
[1727200794338,0.3755,2649.7,2649.4,0.77155]
[1727200794634,0.75292,2649.7,2649.4,0.77155]
[1727200795029,1.36354236,2649.7,2649.3,3.2078]
[1727200795240,0.37745,2649.5,2649.3,3.2078]
[1727200795539,0.3748,2649.4,2649.3,3.1965]
[1727200796125,0.75226,2649.4,2649.3,3.1965]
[1727200797137,0.3748,2649.4,2649.3,3.1965]
[1727200797328,1.36354236,2649.7,2649.4,0.37746]
[1727200797524,0.37743,2649.6,2649.3,3.1965]
[1727200797930,0.37745,2649.5,2649.3,3.1965]
[1727200798436,0.37745,2649.5,2649.3,3.57397]
[1727200798637,0.37744,2649.6,2649.3,3.57397]
[1727200798827,0.37745,2649.5,2649.3,3.1965]
[1727200799233,0.37745,2649.5,2649.3,3.57397]
[1727200799428,0.94358,2649.6,2649.0,0.398]
[1727200799625,0.94362,2649.5,2648.7,7.3458]
[1727200799825,0.94362,2649.5,2648.7,4.0059]
[1727200799826,3.2078,2649.2,2648.7,4.0059]
[1727200800130,0.37753,2648.9,2648.7,3.58535]
[1727200800330,1.128,2649.1,2648.3,0.7981]
[1727200800532,1.128,2649.1,2649.0,0.37751]
[1727200800730,0.37745,2649.5,2649.2,0.37748]
[1727200800940,0.3828,2649.6,2649.1,3.2078]
[1727200801534,0.3828,2649.6,2649.5,0.37744]
[1727200801835,3.5906,2649.9,2649.4,0.37745]
[1727200802036,0.3777,2649.6,2649.5,0.37744]
[1727200802239,0.3828,2649.9,2649.2,0.94372]
[1727200802533,0.3828,2649.9,2649.8,0.3774]
[1727200803143,0.7602,2649.9,2649.5,0.7669]
[1727200803336,0.7602,2649.9,2649.7,0.37741]
[1727200803535,0.3828,2649.9,2649.8,0.3774]
[1727200803935,0.76019,2649.9,2649.7,0.37741]
[1727200804341,0.3828,2649.9,2649.8,0.3774]
[1727200804539,0.3828,2649.9,2649.7,0.37741]
[1727200804935,0.3828,2649.9,2649.8,0.3774]
[1727200805133,3.5874,2650.2,2649.7,3.2078]
[1727200805439,0.7475,2650.2,2650.1,0.37736]
[1727200806743,0.3838,2650.5,2649.7,3.2078]
[1727200806744,0.3838,2650.5,2650.4,0.37732]
[1727200807040,0.3679,2650.5,2650.4,0.37732]
[1727200807245,3.2078,2650.9,2650.8,0.37726]
[1727200807246,3.6098,2650.9,2650.8,0.37726]
[1727200807543,3.2078,2650.9,2650.8,0.37726]
[1727200807840,0.7367,2651.0,2650.9,0.37724]
[1727200808042,0.98804236,2651.3,2651.2,0.3772]
[1727200808235,0.3688,2651.3,2650.7,0.94319]
[1727200808435,0.3688,2651.3,2651.2,0.3772]
[1727200808634,0.98804236,2651.6,2650.8,0.94312]
[1727200808833,0.37715,2651.6,2651.2,0.3772]
[1727200809041,3.95704,2651.7,2651.3,0.37718]
[1727200809238,3.5799,2651.7,2651.2,0.3772]
[1727200809445,3.5799,2651.7,2651.1,3.2078]
[1727200809446,0.37717,2651.5,2651.1,3.2078]
[1727200809746,0.37717,2651.5,2651.2,0.37719]
[1727200810046,1.36519236,2651.6,2651.2,0.37719]
[1727200810244,4.94508236,2651.7,2651.3,0.37718]
[1727200810655,0.37714,2651.6,2651.3,0.37718]
[1727200810844,0.37714,2651.6,2651.2,0.3772]
[1727200811040,4.56794236,2651.7,2651.2,0.3772]
[1727200811352,0.37716,2651.5,2651.2,0.37719]
[1727200811645,4.94508236,2651.7,2651.4,0.37717]
[1727200811849,3.95704,2651.7,2651.4,0.37717]
[1727200812043,4.56794236,2651.7,2651.0,0.3956]
[1727200812240,0.37715,2651.6,2651.3,0.37718]
[1727200812443,4.94508236,2651.7,2651.0,0.3956]
[1727200812651,3.95704,2651.7,2651.4,0.37717]
[1727200812949,0.37715,2651.6,2651.3,0.37718]
[1727200813253,4.94508236,2651.7,2651.4,0.37717]
[1727200813448,0.37715,2651.6,2651.3,0.37719]
[1727200813640,3.5799,2651.7,2650.8,0.37725]
[1727200813641,0.37723,2651.1,2650.8,0.37725]
[1727200813842,3.2078,2651.1,2650.5,0.3653]
[1727200814043,0.3894,2651.0,2650.6,3.2078]
[1727200814240,0.76663,2651.0,2650.7,0.37726]
[1727200814448,0.3894,2651.0,2650.3,3.2078]
[1727200814751,0.37724,2650.9,2650.7,0.37727]
[1727200814951,0.37724,2650.9,2650.3,4.4318]
[1727200815147,0.37724,2650.9,2650.7,0.37727]
[1727200815349,0.3894,2651.0,2650.8,0.37725]
[1727200815558,0.3894,2651.0,2650.9,0.37724]
[1727200815958,0.3894,2651.0,2650.8,0.37725]
[1727200816257,0.3894,2651.0,2650.9,0.37724]
[1727200816650,0.3894,2651.0,2650.8,0.37725]
[1727200817151,0.76664,2651.0,2650.8,0.37725]
[1727200817455,0.76664,2651.0,2650.9,0.37724]
[1727200817456,0.3894,2651.0,2650.9,0.37724]
[1727200818056,0.76663,2651.0,2650.8,0.37725]
[1727200818357,0.3894,2651.0,2650.9,0.37724]
[1727200819261,0.3894,2651.0,2650.8,0.37725]
[1727200819554,0.76664,2651.0,2650.8,0.37725]
[1727200819758,0.76663,2651.0,2650.8,0.37725]
[1727200819957,0.37726,2650.8,2650.6,3.58508]
[1727200820158,3.5972,2651.0,2650.7,0.37727]
[1727200820159,0.37725,2650.9,2650.7,0.37727]
[1727200820459,0.37727,2650.8,2650.6,3.58508]
[1727200820660,3.5972,2651.0,2650.6,3.2078]
[1727200820856,0.37725,2650.9,2650.7,0.37727]
[1727200821858,3.97444,2651.0,2650.9,0.37724]
[1727200822161,0.3894,2651.0,2650.9,0.37724]
[1727200822355,4.32669,2651.3,2651.1,0.37721]
[1727200822561,4.69519,2651.3,2651.1,0.37721]
[1727200822765,0.3772,2651.2,2650.7,0.7374]
[1727200822956,0.3772,2651.2,2651.0,0.37722]
[1727200823149,4.318,2651.3,2650.8,0.37725]
[1727200823150,0.37724,2651.0,2650.8,0.37725]
[1727200823360,5.26098,2651.3,2650.7,0.7374]
[1727200823361,4.318,2651.3,2650.9,0.37723]
[1727200823565,0.37723,2651.1,2650.9,0.37723]
[1727200824058,0.37723,2651.1,2650.7,0.7374]
[1727200824260,0.37723,2651.1,2650.9,0.37723]
[1727200824459,4.318,2651.3,2651.0,0.37722]
[1727200824460,0.37721,2651.2,2651.0,0.37722]
[1727200824661,0.37723,2651.0,2650.9,0.37724]
[1727200825261,0.37725,2650.9,2650.6,3.2078]
[1727200825464,0.37724,2651.0,2650.6,3.2078]
[1727200825867,0.37724,2651.0,2650.8,0.37725]
[1727200826562,0.37724,2650.9,2650.8,0.37725]
[1727200826761,0.37726,2650.8,2650.7,0.37726]
[1727200826962,0.94307,2651.1,2650.6,3.2078]
[1727200826963,0.37724,2650.9,2650.6,3.2078]
[1727200827258,0.94307,2651.1,2650.6,3.2078]
[1727200827259,0.37727,2650.7,2650.6,3.2078]
[1727200827462,1.85114699,2650.7,2650.6,3.58509]
[1727200827769,2.23094699,2650.7,2650.6,3.58509]
[1727200827972,2.23094699,2650.7,2650.6,3.2078]
[1727200828162,2.24967699,2650.7,2650.6,3.58509]
[1727200828472,0.7758,2650.7,2650.6,3.58509]
[1727200828765,0.3798,2650.7,2650.6,3.58509]
[1727200828965,1.84687699,2650.8,2650.7,0.37727]
[1727200829473,1.85367699,2651.0,2650.9,0.37724]
[1727200830971,2.23090699,2651.0,2650.9,0.37724]
[1727200831168,1.85367699,2651.0,2650.9,0.37724]
[1727200831567,2.23203494,2651.0,2650.9,0.37724]
[1727200831877,1.85480494,2651.0,2650.9,0.37724]
[1727200832480,0.98324723,2651.1,2650.9,18.40792]
[1727200832782,3.2078,2652.0,2651.5,0.37716]
[1727200832783,0.98324723,2651.6,2651.5,0.37716]
[1727200832970,0.98324723,2651.6,2651.5,3.2078]
[1727200832971,0.37714,2651.6,2651.5,3.2078]
[1727200833164,5.09121,2651.6,2651.5,3.2078]
[1727200833366,5.09121,2651.6,2651.0,1.5887]
[1727200833367,0.9429,2651.5,2651.2,3.585]
[1727200833565,0.98297315,2651.3,2651.2,3.585]
[1727200833773,0.76508,2651.4,2651.3,0.37719]
[1727200834171,0.3645,2651.5,2651.4,0.37717]
[1727200834580,0.37718,2651.4,2651.3,0.37718]
[1727200834877,0.74167,2651.5,2651.4,0.37717]
[1727200835374,0.74167,2651.5,2651.3,0.37718]
[1727200835577,0.3645,2651.5,2651.4,0.37717]
[1727200835970,0.37722,2651.1,2651.0,0.37723]
[1727200836172,0.37722,2651.1,2650.9,0.37724]
[1727200836377,0.94312,2650.9,2650.4,3.5851]
[1727200836573,0.3773,2650.5,2650.4,3.2078]
[1727200836873,3.2078,2650.5,2650.1,3.2078]
[1727200837068,0.37734,2650.3,2650.1,3.2078]
[1727200837266,0.37734,2650.2,2650.1,3.2078]
[1727200837465,0.3883,2650.4,2650.1,3.57456]
[1727200837672,0.76562,2650.4,2650.1,3.57456]
[1727200837981,0.37733,2650.3,2650.1,3.1972]
[1727200838280,0.3883,2650.4,2650.1,3.57455]
[1727200838479,0.76562,2650.4,2650.1,3.57455]
[1727200838681,0.3883,2650.4,2650.2,0.37734]
[1727200838984,0.76562,2650.4,2650.1,3.57455]
[1727200839575,3.2078,2650.2,2649.7,0.46640608]
[1727200839775,0.3774,2649.8,2649.7,0.46640608]
[1727200840285,4.151,2649.8,2649.7,0.46640608]
[1727200840586,0.37743,2649.6,2649.3,2.05653188]
[1727200840773,0.37746,2649.4,2649.3,1.67906188]
[1727200841185,12.07833822,2649.4,2649.3,0.08846188]
[1727200841378,12.07833822,2649.4,2648.9,0.46147436]
[1727200841379,0.37751,2649.0,2648.9,0.46147436]
[1727200841583,9.75659869,2649.0,2648.9,0.46147436]
[1727200841780,9.75659869,2649.0,2648.0,0.088]
[1727200841781,0.94391,2648.7,2648.0,0.088]
[1727200841980,0.94391,2648.7,2647.8,3.3098]
[1727200841981,1.36152736,2648.4,2647.8,3.2078]
[1727200842180,4.19171736,2648.5,2648.0,0.37765]
[1727200842385,4.19171736,2648.5,2647.8,3.2078]
[1727200842386,0.37761,2648.4,2648.1,0.37764]
[1727200842585,0.37762,2648.3,2648.0,0.37766]
[1727200842782,0.98391736,2648.4,2647.9,0.37766]
[1727200842975,0.37762,2648.3,2647.9,0.37767]
[1727200843172,0.3776,2648.4,2648.1,0.37764]
[1727200843388,0.98391736,2648.7,2648.1,3.2078]
[1727200843680,0.98391736,2649.0,2648.2,4.485]
[1727200843983,0.37752,2649.0,2648.6,0.37756]
[1727200844377,0.37752,2649.0,2648.3,0.3656]
[1727200844378,3.2078,2648.8,2648.3,0.3656]
[1727200844575,3.2078,2648.8,2648.1,1.225]
[1727200844576,4.19171736,2648.8,2648.1,1.225]
[1727200844880,0.37757,2648.7,2648.1,3.2078]
[1727200845085,3.2078,2648.8,2648.2,0.37762]
[1727200845287,0.37758,2648.6,2648.2,0.37762]
[1727200845675,0.37758,2648.6,2648.3,0.37761]
[1727200845983,3.2078,2648.8,2648.1,3.2078]
[1727200846189,0.3776,2648.5,2648.2,0.37762]
[1727200846479,0.3776,2648.4,2648.1,3.58544]
[1727200846787,0.3776,2648.4,2647.7,0.3886]
[1727200846788,0.98391736,2648.6,2647.7,3.5964]
[1727200847082,3.2078,2648.0,2647.7,0.3886]
[1727200847284,3.2078,2648.0,2647.2,3.7489]
[1727200847285,3.2078,2648.0,2647.1,3.2078]
[1727200847474,0.37771,2647.7,2647.3,0.37775]
[1727200847676,3.2078,2648.0,2647.1,11.37872378]
[1727200847878,3.2078,2648.1,2647.4,3.2078]
[1727200848077,3.2078,2648.1,2647.4,0.37773]
[1727200848078,0.37769,2647.8,2647.4,0.37773]
[1727200848275,0.37768,2647.9,2647.5,0.37772]
[1727200848586,0.37768,2647.9,2647.4,0.37774]
[1727200848793,3.2078,2648.1,2647.1,4.794]
[1727200848794,0.3777,2647.8,2647.3,0.37775]
[1727200849086,0.3777,2647.8,2647.2,0.37777]
[1727200849087,3.2078,2647.8,2647.2,0.37777]
[1727200849279,0.3777,2647.7,2647.2,0.37777]
[1727200849472,0.37772,2647.6,2647.1,3.94678]
[1727200849680,3.2078,2647.8,2647.1,3.569]
[1727200849880,0.37774,2647.4,2647.1,0.3612]
[1727200850077,0.37776,2647.3,2647.1,0.3612]
[1727200850277,3.2078,2647.5,2647.2,0.37776]
[1727200850476,3.2078,2647.5,2647.3,0.37776]
[1727200850686,3.2078,2647.5,2647.4,0.37774]
[1727200851186,3.2078,2647.5,2647.4,4.15534]
[1727200851482,3.2078,2647.5,2647.4,0.37774]
[1727200851785,3.2078,2647.5,2647.4,4.15534]
[1727200852291,0.37763,2648.2,2647.7,0.37769]
[1727200852488,0.37762,2648.3,2647.8,0.37768]
[1727200852690,3.5869,2648.4,2647.7,0.37769]
[1727200852691,3.2078,2648.1,2647.7,0.37769]
[1727200852983,3.2078,2648.1,2647.6,0.37771]
[1727200853389,3.2078,2648.1,2647.7,0.3777]
[1727200853686,0.37766,2648.0,2647.5,0.37772]
[1727200853880,3.2078,2648.1,2647.3,0.37775]
[1727200854076,3.58549,2647.8,2647.3,0.37775]
[1727200854279,3.58549,2647.8,2647.2,1.223]
[1727200854280,3.2078,2647.8,2647.4,0.37774]
[1727200854885,3.58549,2647.8,2647.3,0.37775]
[1727200855188,3.2078,2647.8,2647.2,1.223]
[1727200855488,3.2078,2647.8,2647.1,3.569]
[1727200855680,3.58554,2647.5,2647.1,3.569]
[1727200855882,3.58554,2647.5,2647.1,0.3612]
[1727200856280,3.58554,2647.5,2647.0,0.3659]
[1727200856281,0.37775,2647.4,2647.0,0.3659]
[1727200856679,3.2078,2647.5,2647.0,0.3659]
[1727200856881,0.37775,2647.4,2647.0,0.3659]
[1727200857389,3.58553,2647.5,2647.1,0.37779]
[1727200858193,0.37774,2647.4,2647.0,0.74369]
[1727200858381,0.37775,2647.4,2647.0,0.74369]
[1727200858584,0.37776,2647.3,2647.0,0.74369]
[1727200858787,0.37776,2647.3,2647.0,0.3659]
[1727200858984,0.37776,2647.3,2647.0,0.7437]
[1727200859185,0.37776,2647.3,2647.0,0.3659]
[1727200859385,0.37776,2647.3,2646.9,0.4154932]
[1727200859588,0.37776,2647.3,2646.9,0.0376832]
[1727200859788,4.58231,2647.0,2646.9,0.0376832]
[1727200859987,4.58231,2647.0,2645.9,0.088]
[1727200859988,0.94455,2646.9,2645.9,0.088]
[1727200860183,3.2078,2646.3,2645.4,3.2078]
[1727200860390,4.15256,2646.3,2645.3,0.3989]
[1727200860585,5.63064813,2646.5,2645.8,3.2078]
[1727200860982,5.63064813,2646.5,2645.8,3.58577]
[1727200860983,3.5857,2646.3,2645.8,3.58577]
[1727200861302,3.7792,2646.2,2645.1,3.2958]
[1727200861598,3.26,2646.4,2645.1,3.2958]
[1727200861599,3.77975662,2646.9,2645.7,3.2078]
[1727200861892,0.37785,2646.7,2646.2,0.37791]
[1727200862093,3.2078,2646.9,2646.1,0.37792]
[1727200862094,0.37786,2646.6,2646.1,0.37792]
[1727200862489,3.2078,2646.9,2646.2,3.26]
[1727200862682,3.26,2647.6,2646.2,3.26]
[1727200862683,0.3778,2647.1,2646.4,3.2078]
[1727200862994,0.37782,2646.9,2646.4,4.4988]
[1727200863296,0.94454,2646.9,2646.4,3.2078]
[1727200863484,4.72294,2646.9,2646.4,3.2078]
[1727200863683,0.37787,2646.5,2646.4,3.2078]
[1727200863892,3.2078,2646.7,2646.2,0.7825]
[1727200864195,3.26,2646.7,2645.9,3.2078]
[1727200864387,0.37788,2646.5,2646.1,0.37792]
[1727200864587,0.37786,2646.6,2646.0,0.3692]
[1727200864883,3.2078,2646.9,2646.1,3.2078]
[1727200865080,0.37785,2646.7,2646.4,0.37788]
[1727200865391,0.37784,2646.8,2646.2,0.3808]
[1727200865589,3.58562,2646.9,2646.6,0.37785]
[1727200865790,3.2078,2647.3,2646.4,3.2078]
[1727200865979,3.2078,2647.3,2646.5,0.3768]
[1727200866293,3.2078,2647.3,2646.7,3.2078]
[1727200866589,0.7379,2647.5,2646.1,3.2078]
[1727200866590,0.37784,2646.8,2646.1,3.2078]
[1727200866796,7.41224,2647.2,2646.1,3.2078]
[1727200866797,3.2078,2647.2,2646.5,3.2078]
[1727200867089,0.37779,2647.1,2646.7,0.37783]
[1727200867287,4.89005,2647.5,2646.8,3.2078]
[1727200867288,3.2078,2647.5,2646.8,3.2078]
[1727200867493,0.94419,2647.9,2647.1,3.2078]
[1727200867686,3.2078,2647.7,2647.2,0.3842]
[1727200868580,0.94414,2648.1,2647.3,0.37775]
[1727200868887,0.37769,2647.8,2647.2,0.3842]
[1727200869288,0.37769,2647.8,2647.5,0.37773]
[1727200869591,0.37772,2647.6,2647.3,0.37776]
[1727200871090,3.2078,2648.0,2647.6,0.37771]
[1727200871283,3.2078,2648.2,2647.4,3.2078]
[1727200871485,0.37769,2647.8,2647.5,0.37772]
[1727200871695,3.2078,2648.2,2647.2,1.32861]
[1727200871994,3.2078,2648.2,2647.4,3.2078]
[1727200871995,0.37766,2648.0,2647.4,3.2078]